bitfinex/quotes_BTCUSD_20241226
["timestamp","ask_amount","ask_price","bid_price","bid_amount"]
[1735176707799,0.00132724,98821.0,98810.0,0.16293794]
[1735176708013,0.20079939,98820.0,98793.0,0.0786]
[1735176708241,0.161926,98811.0,98796.0,0.161949]
[1735176708449,0.00101135,98819.0,98786.0,0.25285417]
[1735176708450,0.10398632,98810.0,98786.0,0.25285417]
[1735176708658,0.161941,98802.0,98786.0,0.09089017]
[1735176708873,0.10398632,98810.0,98786.0,0.09089017]
[1735176708874,0.10499767,98801.0,98786.0,0.09089017]
[1735176709073,0.161953,98794.0,98786.0,0.09089017]
[1735176709672,0.10499767,98801.0,98782.0,0.161972]
[1735176709673,0.161945,98799.0,98782.0,0.161972]
[1735176709886,0.161945,98799.0,98786.0,0.002]
[1735176710524,0.26592832,98801.0,98787.0,0.161964]
[1735176711442,0.001,98794.0,98787.0,0.161964]
[1735176712307,0.27092832,98801.0,98787.0,0.161964]
[1735176712765,0.26892832,98801.0,98787.0,0.161964]
[1735176713789,0.26892832,98801.0,98781.0,0.01026361]
[1735176713790,0.003,98801.0,98792.0,0.161955]
[1735176713992,0.003,98801.0,98794.0,0.161953]
[1735176714224,0.161933,98807.0,98794.0,0.161953]
[1735176714435,0.003,98801.0,98794.0,0.1629651]
[1735176714636,0.003,98801.0,98790.0,0.161958]
[1735176714637,0.161939,98803.0,98791.0,0.0010121]
[1735176715051,0.002,98801.0,98791.0,0.0010121]
[1735176715495,0.161933,98807.0,98792.0,0.161956]
[1735176715707,0.161933,98807.0,98793.0,0.0010121]
[1735176716120,0.001,98803.0,98793.0,0.0010121]
[1735176716476,0.002,98803.0,98793.0,0.0010121]
[1735176717295,0.001,98803.0,98794.0,0.161953]
[1735176717498,0.001,98803.0,98795.0,0.161951]
[1735176718116,0.17219274,98810.0,98795.0,0.161951]
[1735176718316,0.001,98803.0,98795.0,0.161951]
[1735176718781,0.001,98803.0,98795.0,0.162951]
[1735176719172,0.27617906,98810.0,98795.0,0.161951]
[1735176719391,0.27717906,98810.0,98795.0,0.161951]
[1735176719728,0.27617906,98810.0,98795.0,0.161951]
[1735176720558,0.27817906,98810.0,98795.0,0.161951]
[1735176720784,0.27817906,98810.0,98800.0,0.161942]
[1735176720785,0.002,98810.0,98800.0,0.161942]
[1735176720986,0.002,98810.0,98801.0,0.00101205]
[1735176721200,0.002,98810.0,98802.0,0.16194]
[1735176721422,0.002,98810.0,98802.0,0.162952]
[1735176721730,0.001,98810.0,98802.0,0.162952]
[1735176722212,0.01029772,98812.0,98802.0,0.162952]
[1735176722636,0.161922,98813.0,98802.0,0.001012]
[1735176722882,0.16194,98802.0,98785.0,0.082]
[1735176723089,0.323881,98802.0,98778.0,0.161979]
[1735176723294,0.323881,98802.0,98786.0,0.0010121]
[1735176723723,0.16194,98802.0,98787.0,0.161964]
[1735176723906,0.16194,98802.0,98788.0,0.00101214]
[1735176724120,0.0102201,98814.0,98790.0,0.09681307]
[1735176724333,8.58e-05,98836.0,98800.0,0.09681307]
[1735176724334,0.15,98822.0,98800.0,0.09681307]
[1735176724545,0.0001716,98831.0,98814.0,0.161919]
[1735176724767,0.0001716,98831.0,98809.0,0.09681307]
[1735176724768,0.161895,98830.0,98819.0,0.16191]
[1735176724972,0.161895,98830.0,98815.0,0.16292985]
[1735176725185,0.0001716,98831.0,98819.0,0.16191]
[1735176725439,0.0001716,98831.0,98815.0,0.00101185]
[1735176725670,0.0001716,98831.0,98820.0,0.00101185]
[1735176726751,0.0001716,98831.0,98820.0,0.16292173]
[1735176727796,0.00132724,98821.0,98820.0,0.173957]
[1735176728015,0.00032724,98821.0,98820.0,0.172957]
[1735176728431,0.00132724,98821.0,98820.0,0.175957]
[1735176728584,0.00032724,98821.0,98820.0,0.174957]
[1735176728779,0.00032724,98821.0,98820.0,0.172957]
[1735176729008,0.00132724,98821.0,98820.0,0.176957]
[1735176731352,0.00132724,98821.0,98820.0,0.28094332]
[1735176731563,0.00132724,98821.0,98820.0,0.45923159]
[1735176731816,0.00132724,98821.0,98820.0,0.50563159]
[1735176732459,0.00132724,98821.0,98820.0,0.50263159]
[1735176732838,0.00132724,98821.0,98820.0,0.50563159]
[1735176733060,0.0001716,98831.0,98830.0,0.261894]
[1735176733288,0.0001716,98831.0,98830.0,0.46818032]
[1735176733497,0.0001716,98831.0,98830.0,0.34518032]
[1735176733716,0.0001716,98831.0,98821.0,0.161908]
[1735176733911,0.0001716,98831.0,98822.0,0.00101169]
[1735176734118,0.001,98821.0,98820.0,0.17694527]
[1735176734427,0.0001716,98831.0,98820.0,0.17494527]
[1735176734687,0.10398632,98830.0,98820.0,0.003]
[1735176734860,0.161895,98829.0,98811.0,0.09089017]
[1735176735072,0.161895,98829.0,98812.0,0.161923]
[1735176735329,0.001,98821.0,98820.0,0.16691]
[1735176735540,0.001,98821.0,98820.0,0.005]
[1735176735749,0.0011716,98831.0,98816.0,0.161915]
[1735176735750,0.0001716,98831.0,98821.0,0.161908]
[1735176736367,0.0001716,98831.0,98822.0,0.00101176]
[1735176738196,0.0001716,98831.0,98822.0,0.00301176]
[1735176738398,0.0001716,98831.0,98822.0,0.00101176]
[1735176738988,0.0011716,98831.0,98822.0,0.00101176]
[1735176739197,0.0011716,98831.0,98822.0,0.01143395]
[1735176739722,0.0011716,98831.0,98822.0,0.00101176]
[1735176740691,0.0001716,98831.0,98822.0,0.00101176]
[1735176741098,0.0011716,98831.0,98822.0,0.00101176]
[1735176741546,0.0011716,98831.0,98811.0,0.00015564]
[1735176741547,0.0001716,98831.0,98811.0,0.00015564]
[1735176741693,0.161895,98829.0,98812.0,0.161923]
[1735176741942,0.161895,98829.0,98813.0,0.00101186]
[1735176742571,0.161895,98829.0,98814.0,0.16192]
[1735176742799,0.161895,98829.0,98815.0,0.00101186]
[1735176743717,0.163895,98829.0,98815.0,0.00101186]
[1735176743919,0.161895,98829.0,98815.0,0.00101186]
[1735176744368,0.163895,98829.0,98815.0,0.00101186]
[1735176744790,0.165895,98829.0,98815.0,0.00101186]
[1735176745127,0.165895,98829.0,98816.0,0.161917]
[1735176745305,0.163895,98829.0,98817.0,0.00101186]
[1735176745724,0.165895,98829.0,98817.0,0.00101186]
[1735176746060,0.163895,98829.0,98817.0,0.00101186]
[1735176746356,0.165895,98829.0,98817.0,0.00101186]
[1735176746561,0.163895,98829.0,98817.0,0.00101186]
[1735176746765,0.165895,98829.0,98817.0,0.00101186]
[1735176747350,0.167895,98829.0,98814.0,0.16192]
[1735176747548,0.167895,98829.0,98816.0,0.161917]
[1735176747872,0.165895,98829.0,98817.0,0.00101186]
[1735176748073,0.167895,98829.0,98817.0,0.00101186]
[1735176748367,0.161903,98825.0,98813.0,8.57e-05]
[1735176748593,0.161903,98825.0,98813.0,0.00109757]
[1735176748730,0.161897,98828.0,98814.0,0.16192]
[1735176748917,0.161897,98828.0,98815.0,0.00101186]
[1735176749147,0.006,98829.0,98816.0,0.16292886]
[1735176749350,0.004,98829.0,98816.0,0.16292886]
[1735176749565,0.161895,98830.0,98816.0,0.16292886]
[1735176749566,0.001,98825.0,98816.0,0.16292886]
[1735176749990,0.15,98816.0,98813.0,8.57e-05]
[1735176750189,0.43782,98814.0,98813.0,8.57e-05]
[1735176750392,0.54180632,98814.0,98813.0,8.57e-05]
[1735176751655,0.54380632,98814.0,98813.0,8.57e-05]
[1735176752525,0.54880632,98814.0,98813.0,8.57e-05]
[1735176752772,0.54680632,98814.0,98813.0,8.57e-05]
[1735176752963,0.55480632,98814.0,98813.0,0.0010857]
[1735176755445,0.45082,98814.0,98813.0,0.0010857]
[1735176755645,0.013,98814.0,98813.0,0.0010857]
[1735176757155,0.005,98814.0,98813.0,8.57e-05]
[1735176757363,0.007,98814.0,98813.0,8.57e-05]
[1735176757566,0.002,98814.0,98813.0,8.57e-05]
[1735176757886,0.004,98814.0,98813.0,8.57e-05]
[1735176758740,0.006,98814.0,98813.0,8.57e-05]
[1735176759501,0.002,98814.0,98813.0,8.57e-05]
[1735176759905,0.004,98814.0,98813.0,8.57e-05]
[1735176763739,0.00501135,98814.0,98813.0,8.57e-05]
[1735176764529,0.10899767,98814.0,98813.0,8.57e-05]
[1735176764700,0.18869767,98814.0,98813.0,8.57e-05]
[1735176766456,0.0837,98814.0,98813.0,8.57e-05]
[1735176766661,0.00501135,98814.0,98813.0,8.57e-05]
[1735176769348,0.10899767,98814.0,98813.0,8.57e-05]
[1735176769561,0.10798632,98814.0,98813.0,8.57e-05]
[1735176769713,0.10899767,98814.0,98813.0,8.57e-05]
[1735176772324,0.16980767,98814.0,98813.0,8.57e-05]
[1735176773004,0.10899767,98814.0,98813.0,8.57e-05]
[1735176773804,0.10798632,98814.0,98813.0,8.57e-05]
[1735176774210,0.10899767,98814.0,98813.0,8.57e-05]
[1735176777822,0.10699767,98814.0,98813.0,8.57e-05]
[1735176778181,0.10899767,98814.0,98813.0,8.57e-05]
[1735176778686,0.25899767,98814.0,98813.0,8.57e-05]
[1735176778890,0.25598632,98814.0,98813.0,8.57e-05]
[1735176779285,0.25798632,98814.0,98813.0,8.57e-05]
[1735176779609,0.57049632,98814.0,98813.0,8.57e-05]
[1735176779914,0.60175554,98814.0,98813.0,8.57e-05]
[1735176780284,0.59975554,98814.0,98813.0,8.57e-05]
[1735176780514,0.60275554,98814.0,98813.0,0.0010857]
[1735176780854,0.61175554,98814.0,98813.0,0.0020857]
[1735176780977,0.60675554,98814.0,98813.0,0.0010857]
[1735176781447,0.61175554,98814.0,98813.0,0.0020857]
[1735176781659,0.81574186,98814.0,98813.0,0.00084436]
[1735176781865,0.71175554,98814.0,98813.0,0.00060436]
[1735176782067,0.89206034,98814.0,98813.0,0.00060436]
[1735176783352,0.56251,98812.0,98811.0,6.5e-07]
[1735176783629,0.69775554,98812.0,98811.0,6.5e-07]
[1735176784258,0.92251983,98812.0,98811.0,6.5e-07]
[1735176784461,0.96514531,98812.0,98811.0,6.5e-07]
[1735176784661,0.97014531,98812.0,98811.0,6.5e-07]
[1735176785097,0.66670983,98812.0,98811.0,6.5e-07]
[1735176785298,0.76670983,98812.0,98811.0,6.5e-07]
[1735176785517,0.77470983,98812.0,98811.0,6.5e-07]
[1735176785698,0.76670983,98812.0,98811.0,6.5e-07]
[1735176786108,0.93654983,98812.0,98811.0,6.5e-07]
[1735176786307,1.03153615,98812.0,98811.0,6.5e-07]
[1735176786516,1.02653615,98812.0,98811.0,6.5e-07]
[1735176786692,0.80877186,98812.0,98811.0,6.5e-07]
[1735176787226,0.81777186,98812.0,98811.0,6.5e-07]
[1735176788023,1.04253615,98812.0,98811.0,6.5e-07]
[1735176788951,1.03353615,98812.0,98811.0,6.5e-07]
[1735176789114,1.04253615,98812.0,98811.0,6.5e-07]
[1735176789910,0.161985,98774.0,98771.0,8.58e-05]
[1735176790121,0.161989,98772.0,98771.0,8.58e-05]
[1735176790732,0.10398632,98772.0,98771.0,8.58e-05]
[1735176790952,0.10499767,98772.0,98771.0,8.58e-05]
[1735176791174,0.10504961,98772.0,98771.0,8.58e-05]
[1735176792824,0.00606329,98772.0,98771.0,8.58e-05]
[1735176793644,0.00106329,98772.0,98771.0,8.58e-05]
[1735176793844,0.00606329,98772.0,98771.0,8.58e-05]
[1735176794037,0.00906329,98772.0,98771.0,8.58e-05]
[1735176794624,0.11004961,98772.0,98771.0,8.58e-05]
[1735176794882,0.11204961,98772.0,98771.0,8.58e-05]
[1735176795085,0.10704961,98772.0,98771.0,8.58e-05]
[1735176795520,0.11104961,98772.0,98771.0,8.58e-05]
[1735176795719,0.10704961,98772.0,98771.0,8.58e-05]
[1735176796090,0.11004961,98772.0,98771.0,8.58e-05]
[1735176797363,0.10804961,98772.0,98771.0,8.58e-05]
[1735176797563,0.11004961,98772.0,98771.0,8.58e-05]
[1735176797764,0.19114961,98772.0,98771.0,8.58e-05]
[1735176798315,0.18814961,98772.0,98771.0,8.58e-05]
[1735176798723,0.19214961,98772.0,98771.0,8.58e-05]
[1735176798933,0.18814961,98772.0,98771.0,8.58e-05]
[1735176799060,0.19314961,98772.0,98771.0,8.58e-05]
[1735176799913,0.19114961,98772.0,98771.0,8.58e-05]
[1735176800295,0.19414961,98772.0,98771.0,8.58e-05]
[1735176800646,0.19114961,98772.0,98771.0,8.58e-05]
[1735176801060,0.19414961,98772.0,98771.0,8.58e-05]
[1735176801902,0.40498961,98772.0,98771.0,8.58e-05]
[1735176802262,0.40397826,98772.0,98771.0,8.58e-05]
[1735176803134,0.45327826,98772.0,98771.0,8.58e-05]
[1735176807614,0.45027826,98772.0,98771.0,8.58e-05]
[1735176807828,0.45527826,98772.0,98771.0,8.58e-05]
[1735176808255,0.45027826,98772.0,98771.0,8.58e-05]
[1735176808681,0.45827826,98772.0,98771.0,8.58e-05]
[1735176809186,0.46127826,98772.0,98771.0,8.58e-05]
[1735176809390,0.56782818,98772.0,98771.0,8.58e-05]
[1735176809934,0.56382818,98772.0,98771.0,8.58e-05]
[1735176810899,0.47227826,98772.0,98771.0,8.58e-05]
[1735176811018,0.39117826,98772.0,98771.0,8.58e-05]
[1735176811230,0.40017826,98772.0,98771.0,8.58e-05]
[1735176811826,0.39117826,98772.0,98771.0,8.58e-05]
[1735176812228,0.39617826,98772.0,98771.0,8.58e-05]
[1735176813070,0.40217826,98772.0,98771.0,8.58e-05]
[1735176814676,0.32987826,98772.0,98771.0,8.58e-05]
[1735176815085,0.01505194,98772.0,98771.0,8.58e-05]
[1735176815302,0.01505194,98772.0,98771.0,0.0771858]
[1735176815728,0.00905194,98772.0,98771.0,0.0771858]
[1735176815932,0.01205194,98772.0,98771.0,0.0771858]
[1735176816555,0.00905194,98772.0,98771.0,0.0771858]
[1735176816763,0.01005194,98772.0,98771.0,0.0771858]
[1735176816971,0.00105194,98772.0,98771.0,0.0771858]
[1735176817182,0.00605194,98772.0,98771.0,0.0771858]
[1735176817383,0.00105194,98772.0,98771.0,0.0771858]
[1735176817836,0.00205194,98772.0,98771.0,0.0771858]
[1735176818231,0.00105194,98772.0,98771.0,0.0771858]
[1735176818438,0.00105194,98772.0,98771.0,0.07919816]
[1735176819017,0.00105194,98772.0,98771.0,0.07819816]
[1735176819229,0.00105194,98772.0,98771.0,0.07919816]
[1735176819428,0.00105194,98772.0,98771.0,0.12599816]
[1735176819945,0.00105194,98772.0,98771.0,0.12499816]
[1735176820992,5.194e-05,98772.0,98771.0,0.1239858]
[1735176821344,0.00105194,98772.0,98771.0,0.1249858]
[1735176821736,0.00105194,98772.0,98771.0,0.12599804]
[1735176821941,0.00105194,98772.0,98771.0,0.12499804]
[1735176822161,5.194e-05,98772.0,98771.0,0.12499804]
[1735176822362,0.00105194,98772.0,98771.0,0.12599804]
[1735176822656,5.194e-05,98772.0,98771.0,0.12499804]
[1735176822832,0.00105194,98772.0,98771.0,0.12499804]
[1735176823032,0.00105194,98772.0,98771.0,0.12599804]
[1735176823431,0.00105194,98772.0,98771.0,0.1249858]
[1735176824316,5.194e-05,98772.0,98771.0,0.1249858]
[1735176824534,0.00105194,98772.0,98771.0,0.1249858]
[1735176824704,5.194e-05,98772.0,98771.0,0.1249858]
[1735176824935,5.194e-05,98772.0,98771.0,0.0781858]
[1735176825109,0.00105194,98772.0,98771.0,0.07819807]
[1735176825337,0.00105194,98772.0,98771.0,0.07919807]
[1735176825943,5.194e-05,98772.0,98771.0,0.07819807]
[1735176826246,0.00105194,98772.0,98771.0,0.07919807]
[1735176826653,0.00105194,98772.0,98771.0,0.07819807]
[1735176826851,0.00105194,98772.0,98771.0,0.07919807]
[1735176828099,5.194e-05,98772.0,98771.0,0.07919807]
[1735176828236,0.00105194,98772.0,98771.0,0.07919807]
[1735176828594,0.00105194,98772.0,98771.0,0.07819807]
[1735176829015,5.194e-05,98772.0,98771.0,0.07919807]
[1735176829215,0.00105194,98772.0,98771.0,0.07919807]
[1735176831328,5.194e-05,98772.0,98771.0,0.00109807]
[1735176831533,5.194e-05,98772.0,98771.0,0.0010858]
[1735176831742,0.00105194,98772.0,98771.0,0.0010858]
[1735176832122,0.00105194,98772.0,98771.0,0.00109813]
[1735176832333,5.194e-05,98772.0,98771.0,0.00109813]
[1735176832466,0.00105194,98772.0,98771.0,0.00109813]
[1735176832906,5.194e-05,98772.0,98771.0,0.00109813]
[1735176834326,5.194e-05,98772.0,98771.0,0.00209813]
[1735176834791,5.194e-05,98772.0,98771.0,0.00109813]
[1735176835022,5.194e-05,98772.0,98771.0,0.00209813]
[1735176835226,0.00105194,98772.0,98771.0,0.00209813]
[1735176836660,0.00105194,98772.0,98771.0,0.0010858]
[1735176837265,0.00105194,98772.0,98771.0,8.58e-05]
[1735176838063,5.194e-05,98772.0,98771.0,8.58e-05]
[1735176841345,5.194e-05,98772.0,98771.0,0.1620758]
[1735176841562,5.194e-05,98772.0,98771.0,0.2391758]
[1735176842632,0.00105194,98772.0,98771.0,0.2391758]
[1735176843176,5.194e-05,98772.0,98771.0,0.2391758]
[1735176844195,5.194e-05,98772.0,98771.0,8.58e-05]
[1735176844605,5.194e-05,98772.0,98771.0,0.12529809]
[1735176845000,0.00105194,98772.0,98771.0,0.12629809]
[1735176845202,5.194e-05,98772.0,98771.0,0.0010858]
[1735176845404,5.194e-05,98772.0,98771.0,0.00209812]
[1735176845617,5.194e-05,98772.0,98771.0,8.58e-05]
[1735176845824,5.194e-05,98772.0,98771.0,0.0010858]
[1735176848390,5.194e-05,98772.0,98771.0,8.58e-05]
[1735176848621,5.194e-05,98772.0,98771.0,0.0010858]
[1735176849100,5.194e-05,98772.0,98771.0,8.58e-05]
[1735176849348,5.194e-05,98772.0,98771.0,0.0010858]
[1735176850276,5.194e-05,98772.0,98771.0,8.58e-05]
[1735176851556,0.00105194,98772.0,98771.0,8.58e-05]
[1735176852000,5.194e-05,98772.0,98771.0,8.58e-05]
[1735176852429,5.194e-05,98772.0,98771.0,0.0010858]
[1735176853871,5.194e-05,98772.0,98771.0,0.00209817]
[1735176855423,5.194e-05,98772.0,98771.0,0.0010858]
[1735176856294,5.194e-05,98772.0,98771.0,8.58e-05]
[1735176856493,5.194e-05,98772.0,98771.0,0.0010858]
[1735176857921,5.194e-05,98772.0,98771.0,8.58e-05]
[1735176863191,5.194e-05,98772.0,98771.0,0.33248449]
[1735176863398,5.194e-05,98772.0,98771.0,0.33147212]
[1735176863608,5.194e-05,98772.0,98771.0,0.34168213]
[1735176864257,0.00105194,98772.0,98771.0,0.34168213]
[1735176864464,5.194e-05,98772.0,98771.0,0.34168213]
[1735176864643,5.194e-05,98772.0,98771.0,0.34268213]
[1735176864884,5.194e-05,98772.0,98771.0,0.67873797]
[1735176864885,0.00105194,98772.0,98771.0,0.67873797]
[1735176865089,0.00105194,98772.0,98771.0,0.67773797]
[1735176865489,0.00105194,98772.0,98771.0,0.67873797]
[1735176866158,0.00105194,98772.0,98771.0,0.85173797]
[1735176866362,0.00105194,98772.0,98771.0,0.95173797]
[1735176867091,0.00105194,98772.0,98771.0,0.95073797]
[1735176867592,0.00205194,98772.0,98771.0,0.95173797]
[1735176867842,0.00105194,98772.0,98771.0,0.97153551]
[1735176868047,0.00105194,98772.0,98771.0,0.97553551]
[1735176868254,0.00205194,98772.0,98771.0,0.97653551]
[1735176868681,0.00105194,98772.0,98771.0,0.97553551]
[1735176869115,0.00205194,98772.0,98771.0,0.97653551]
[1735176869266,0.00105194,98772.0,98771.0,0.97153551]
[1735176869486,0.00205194,98772.0,98771.0,0.97653551]
[1735176870165,0.00105194,98772.0,98771.0,0.97553551]
[1735176870591,0.00205194,98772.0,98771.0,0.97853551]
[1735176870817,0.00105194,98772.0,98771.0,0.97353551]
[1735176871029,0.00105194,98772.0,98771.0,0.97553551]
[1735176871308,0.00205194,98772.0,98771.0,0.97853551]
[1735176871819,0.00105194,98772.0,98771.0,0.97553551]
[1735176872048,0.0001714,98811.0,98810.0,0.161926]
[1735176872289,0.0002293,98811.0,98810.0,0.161926]
[1735176872529,0.0002293,98811.0,98810.0,0.16293789]
[1735176873603,0.0002293,98811.0,98810.0,0.16393789]
[1735176874028,0.0002293,98811.0,98810.0,0.16493789]
[1735176874453,0.0002293,98811.0,98810.0,0.16393789]
[1735176874690,0.0002293,98811.0,98810.0,0.16693789]
[1735176874897,0.0002293,98811.0,98810.0,0.17720537]
[1735176875142,0.0002293,98811.0,98810.0,0.165926]
[1735176875354,0.0002293,98811.0,98810.0,0.004]
[1735176875775,0.0002293,98811.0,98810.0,0.00501191]
[1735176876193,0.0002293,98811.0,98810.0,0.00401191]
[1735176876994,0.0002293,98811.0,98810.0,0.00101191]
[1735176877226,0.0002293,98811.0,98810.0,0.00201191]
[1735176877528,0.0002293,98811.0,98810.0,0.00101191]
[1735176877649,0.0002293,98811.0,98810.0,0.00301191]
[1735176878066,0.0002293,98811.0,98810.0,0.00101191]
[1735176878285,0.0002293,98811.0,98810.0,0.00401191]
[1735176880025,0.0002293,98811.0,98810.0,0.00501191]
[1735176880820,0.07572784,98828.0,98815.0,0.161917]
[1735176881321,0.07572784,98828.0,98817.0,0.161915]
[1735176881949,0.08072784,98828.0,98817.0,0.161915]
[1735176882565,0.00101135,98827.0,98815.0,0.161917]
[1735176882784,0.1619,98826.0,98809.0,0.17230319]
[1735176882986,0.00101135,98825.0,98809.0,0.17230319]
[1735176883197,0.00106334,98825.0,98809.0,0.17230319]
[1735176883991,0.00106334,98825.0,98810.0,0.00101193]
[1735176884203,0.00106334,98825.0,98811.0,0.161925]
[1735176884403,5.199e-05,98825.0,98811.0,0.00101193]
[1735176884592,0.00205199,98825.0,98811.0,0.00101193]
[1735176884796,0.00505199,98825.0,98817.0,0.161914]
[1735176885004,0.00205199,98825.0,98817.0,0.161914]
[1735176885408,0.00505199,98825.0,98812.0,0.161923]
[1735176885619,5.199e-05,98825.0,98812.0,0.161923]
[1735176885845,5.199e-05,98825.0,98817.0,0.161914]
[1735176886163,0.00205199,98825.0,98817.0,0.161914]
[1735176886810,5.199e-05,98825.0,98812.0,0.161923]
[1735176887021,0.00205199,98825.0,98812.0,0.161923]
[1735176887429,5.199e-05,98825.0,98812.0,0.161923]
[1735176887633,0.00305199,98825.0,98812.0,0.161923]
[1735176887868,0.00505199,98825.0,98812.0,0.161923]
[1735176888051,0.00101135,98824.0,98812.0,0.161923]
[1735176889264,0.00106334,98825.0,98812.0,0.161923]
[1735176889466,0.003,98824.0,98812.0,0.161923]
[1735176890058,0.003,98824.0,98817.0,8.57e-05]
[1735176890669,0.00323474,98825.0,98817.0,8.57e-05]
[1735176890875,0.00222339,98825.0,98824.0,0.161903]
[1735176891232,0.00322339,98825.0,98824.0,0.161903]
[1735176891452,0.00022339,98825.0,98824.0,0.161903]
[1735176892241,0.00022339,98825.0,98824.0,0.26788932]
[1735176892423,0.00022339,98825.0,98824.0,0.26588932]
[1735176892800,0.00022339,98825.0,98824.0,0.27088932]
[1735176893449,0.00022339,98825.0,98824.0,0.28100669]
[1735176893677,0.00022339,98825.0,98824.0,0.38400669]
[1735176893881,0.00022339,98825.0,98824.0,0.37900669]
[1735176894284,0.00022339,98825.0,98824.0,0.37800669]
[1735176894485,0.00022339,98825.0,98824.0,0.52600669]
[1735176894721,0.00022339,98825.0,98824.0,0.70690669]
[1735176894931,0.00122339,98825.0,98824.0,0.71290669]
[1735176895376,0.00122339,98825.0,98824.0,0.51290669]
[1735176895587,0.00122339,98825.0,98824.0,0.28500669]
[1735176896037,0.00122339,98825.0,98824.0,0.28200669]
[1735176896252,0.00122339,98825.0,98824.0,0.28500669]
[1735176896805,0.00122339,98825.0,98824.0,0.170903]
[1735176897284,0.00122339,98825.0,98824.0,0.17191475]
[1735176898131,0.00022339,98825.0,98824.0,0.16591475]
[1735176898343,0.00122339,98825.0,98824.0,0.17191475]
[1735176898944,0.00122339,98825.0,98824.0,0.16891475]
[1735176899146,0.00122339,98825.0,98824.0,0.167903]
[1735176899420,0.00122339,98825.0,98824.0,0.170903]
[1735176899817,0.00122339,98825.0,98824.0,0.17191475]
[1735176900185,0.00122339,98825.0,98824.0,0.170903]
[1735176900388,0.00122339,98825.0,98824.0,0.17191475]
[1735176900602,0.00122339,98825.0,98824.0,0.170903]
[1735176901008,0.00122339,98825.0,98824.0,0.009]
[1735176901249,0.07942339,98825.0,98824.0,0.009]
[1735176901811,0.08946493,98825.0,98824.0,0.009]
[1735176902235,0.00022339,98825.0,98817.0,8.57e-05]
[1735176902416,0.00022339,98825.0,98824.0,0.001]
[1735176902881,0.00022339,98825.0,98820.0,0.16292183]
[1735176903613,0.00022339,98825.0,98824.0,0.003]
[1735176903822,0.00022339,98825.0,98820.0,0.16292183]
[1735176904024,0.00022339,98825.0,98820.0,0.001]
[1735176904231,0.00022339,98825.0,98820.0,0.003]
[1735176904443,0.00123474,98825.0,98820.0,0.001]
[1735176904891,0.00123474,98825.0,98824.0,0.002]
[1735176905097,0.161903,98824.0,98817.0,8.57e-05]
[1735176905295,0.00022339,98825.0,98817.0,8.57e-05]
[1735176905493,0.00123474,98825.0,98824.0,0.001]
[1735176906327,0.00022339,98825.0,98824.0,0.001]
[1735176906540,0.00022339,98825.0,98824.0,0.00101177]
[1735176907239,0.00022339,98825.0,98824.0,0.10499809]
[1735176907666,0.00022339,98825.0,98824.0,0.10699809]
[1735176907838,0.00022339,98825.0,98824.0,0.10499809]
[1735176908257,0.00122339,98825.0,98824.0,0.11099809]
[1735176908462,0.00122339,98825.0,98824.0,0.12130334]
[1735176908818,0.00122339,98825.0,98824.0,0.12230334]
[1735176909034,0.00122339,98825.0,98824.0,0.12130334]
[1735176909454,0.00122339,98825.0,98824.0,0.12430334]
[1735176909684,0.00122339,98825.0,98824.0,0.14425087]
[1735176909888,0.00222339,98825.0,98824.0,0.14825087]
[1735176910103,0.00022339,98825.0,98824.0,0.13725087]
[1735176910526,0.00022339,98825.0,98824.0,0.47425087]
[1735176910732,0.00022339,98825.0,98824.0,0.4682391]
[1735176910938,0.00022339,98825.0,98824.0,0.4732391]
[1735176911146,0.00022339,98825.0,98824.0,0.3732391]
[1735176911335,0.00022339,98825.0,98824.0,0.4712391]
[1735176911742,0.00022339,98825.0,98824.0,0.4732391]
[1735176911949,0.00022339,98825.0,98824.0,0.4962391]
[1735176913938,0.00022339,98825.0,98824.0,0.4732391]
[1735176914509,0.00022339,98825.0,98824.0,0.4733248]
[1735176917055,0.00022339,98825.0,98824.0,0.8084203]
[1735176918511,0.00022339,98825.0,98824.0,0.94459624]
[1735176918721,0.00022339,98825.0,98824.0,1.06759624]
[1735176919249,3.9e-07,98825.0,98824.0,1.06759624]
[1735176919673,0.0001716,98831.0,98830.0,0.1]
[1735176919674,0.00013199,98831.0,98830.0,0.1]
[1735176919884,0.00013199,98831.0,98830.0,0.38989182]
[1735176920121,0.00013199,98831.0,98830.0,0.38888032]
[1735176920998,9.9e-07,98831.0,98830.0,0.58658032]
[1735176921206,6e-07,98837.0,98836.0,0.2785]
[1735176921434,8.59e-05,98861.0,98859.0,0.1785]
[1735176921560,0.00013791,98861.0,98860.0,0.2049976]
[1735176921759,0.00013791,98861.0,98860.0,0.3668426]
[1735176921987,0.00013791,98861.0,98860.0,0.36583132]
[1735176922194,0.00013791,98861.0,98860.0,0.38883132]
[1735176922799,0.00013791,98861.0,98860.0,0.53883132]
[1735176923006,0.08991108,98886.0,98861.0,0.1]
[1735176923007,8.1e-07,98862.0,98861.0,0.1]
[1735176923210,8.1e-07,98862.0,98861.0,0.37799749]
[1735176923456,0.161742,98923.0,98879.0,0.284813]
[1735176923457,0.0001716,98893.0,98879.0,0.284813]
[1735176923632,0.00022359,98880.0,98879.0,0.38879932]
[1735176923782,0.00022359,98880.0,98879.0,0.44472274]
[1735176924194,0.00022359,98880.0,98879.0,0.59472274]
[1735176924441,0.00022359,98880.0,98879.0,0.67322274]
[1735176925019,0.00022359,98880.0,98879.0,0.6501198]
[1735176925228,0.00022359,98880.0,98879.0,1.01167863]
[1735176925424,0.00022359,98880.0,98879.0,0.85425521]
[1735176925628,0.00022359,98880.0,98879.0,0.85025521]
[1735176925874,0.0001716,98893.0,98892.0,0.161792]
[1735176926083,0.00069156,98893.0,98892.0,0.161792]
[1735176927106,0.00069156,98893.0,98892.0,0.165792]
[1735176927977,0.00069156,98893.0,98892.0,0.161792]
[1735176928178,0.00069156,98893.0,98892.0,0.162792]
[1735176928566,0.00069156,98893.0,98892.0,0.17285683]
[1735176929413,0.00069156,98893.0,98892.0,0.17585683]
[1735176930204,0.00069156,98893.0,98892.0,0.17285683]
[1735176930409,0.00069156,98893.0,98892.0,0.17585683]
[1735176930560,0.00069156,98893.0,98892.0,0.17785683]
[1735176930765,0.00069156,98893.0,98892.0,0.17385683]
[1735176930966,0.00069156,98893.0,98892.0,0.17585683]
[1735176931175,0.00069156,98893.0,98892.0,0.17185683]
[1735176931583,0.00069156,98893.0,98892.0,0.17285683]
[1735176931790,0.00069156,98893.0,98892.0,0.17617351]
[1735176931987,0.00069156,98893.0,98892.0,0.17517351]
[1735176932761,0.00069156,98893.0,98892.0,0.18017351]
[1735176933132,0.00069156,98893.0,98892.0,0.17517351]
[1735176933385,0.00069156,98893.0,98892.0,0.17717351]
[1735176933735,0.00069156,98893.0,98892.0,0.18017351]
[1735176933945,0.00069156,98893.0,98892.0,0.17717351]
[1735176934444,0.00069156,98893.0,98892.0,0.18217351]
[1735176938631,0.00069156,98893.0,98892.0,0.17517351]
[1735176938876,0.00069156,98893.0,98892.0,0.18217351]
[1735176941463,0.0001,98909.0,98902.0,0.161774]
[1735176941963,0.0001,98909.0,98900.0,0.00101101]
[1735176941964,0.0001,98909.0,98903.0,8.165e-05]
[1735176942391,0.0001,98909.0,98901.0,0.161777]